Workbook

Sheet Pricing sheet
C3: Harvest Grain Pricing Sheet | G3: Legend
G4: Variables highlighted in Yellow are the inputs you can change that amend the pricing sheet, populating results automatically
C5: Crop
C6: Variety
C7: Grain Grade
C8: Total Hectares | D8: 800 | G8: Tonnes of Sale Quick Calculator
C9: Crop Hectares | D9: 50
C10: Seasonal Cycle | G10: Tonnes of Sale | H10: 40
G11: Sale Price | H11: 350
C12: Harvest Costs | G12: Cost Per Tonne | H12: =E26 -> 156.25
D14: Total Costs | E14: Cost per Hectare | G14: Revenue | H14: =H10*H11 -> 14000
C15: Seed | D15: 5000 | E15: =D15/$D$8 -> 6.25 | G15: Cost of Sale | H15: =H10*H12 -> 6250
C16: Fertilizer | D16: 10000 | E16: =D16/$D$8 -> 12.5 | G16: Profit Margin | H16: =H14-H15 -> 7750
C17: Chemical | D17: 5000 | E17: =D17/$D$8 -> 6.25
C18: Urea | D18: 80000 | E18: =D18/$D$8 -> 100 | G18: Acreage Margin Calculator
C19: Cost per Hectare | E19: =SUM(E15:E18) -> 125
C20: Total cost | E20: =E19*D9 -> 6250 | G20: Seed | H20: =E15*$D$9 -> 312.5
G21: Fertilizer | H21: =E16*$D$9 -> 625
C22: Yield | G22: Chemical | H22: =E17*$D$9 -> 312.5
G23: Urea | H23: =E18*$D$9 -> 5000
C24: Tonnes Harvested | E24: 40 | G24: Profit Margin | H24: =E29-E20 -> 7750
C25: Yield per Hectare (t/hc) | E25: =E24/$D$9 -> 0.8
C26: Cost per Tonne | E26: =E19/ (E24 / $D$9) -> 156.25 | G26: El Niño
C27: Current Price | E27: 350 | G27: La Niña
C28: Margin Per Tonne | E28: =E27-E26 -> 193.75
C29: Gross Revenue | E29: =E24*E27 -> 14000
G30: Yield per Hectare (t/hc)
C31: Yield's Profit | E31: =E29-E20 -> 7750 | G31: Yield per acre (t/ac)
C32: Total Margin | E32: =E28*E24 -> 7750 | G32: Total Hectares
G33: Total Acres
C34: Warehousing
G35: Crop Hectares
C36: Cost Per Month | E36: 2 | G36: Crop Acreage
C37: Total Tonnes | E37: 40
C38: Months Stored | E38: =6 -> 6 | G38: Cost per Hectare
C39: Total Storage Cost | E39: =(E36*E37)*E38 -> 480 | G39: Cost per acre
C41: Profit After Storage | E41: =E31-E39 -> 7270
C44: Creator: | D44: Robert Cain
C45: Email: | D45: cainsolutions97@gmail.com
